fUST/lending_fUST_20250507
["ID","MTS","AMOUNT","RATE_DAILY","PERIOD"]
[360128191,1746559843302,-400.0,0.00019178,2]
[360128193,1746559843312,-400.0,0.00019178,2]
[360128195,1746559843321,-717.19,0.00019178,2]
[360128197,1746559843330,-400.0,0.00019178,2]
[360128199,1746559843339,-400.0,0.00019178,2]
[360128201,1746559843348,-400.0,0.00019178,2]
[360128203,1746559843357,-400.0,0.00019178,2]
[360128205,1746559843367,-585.78,0.00019178,2]
[360128207,1746559843376,-400.0,0.00019178,2]
[360128209,1746559843386,-1540.57,0.00019178,2]
[360128211,1746559843396,-400.0,0.00019178,2]
[360128213,1746559843405,-309.69643883,0.00019178,2]
[360128215,1746559843414,-400.8255333,0.00019178,2]
[360128217,1746559843423,-204.21910831,0.00019178,2]
[360128219,1746559843433,-343.05919239,0.00019178,2]
[360128221,1746559843442,-400.0,0.00019178,2]
[360128223,1746559843451,-400.0,0.00019178,2]
[360128225,1746559843460,-400.0,0.00019178,2]
[360128227,1746559843469,-400.0,0.00019178,2]
[360128229,1746559843478,-449.53782653,0.00019178,2]
[360128231,1746559843488,-400.0,0.00019178,2]
[360128233,1746559843497,-400.0,0.00019178,2]
[360128235,1746559843507,-400.0,0.00019178,2]
[360128237,1746559843518,-400.0,0.00019178,2]
[360128239,1746559843528,-204.85885003,0.00019178,2]
[360128241,1746559843538,-400.0,0.00019178,2]
[360128243,1746559843547,-400.0,0.00019178,2]
[360128245,1746559843556,-663.81,0.00019178,2]
[360128246,1746559843565,-400.0,0.00019178,2]
[360128249,1746559843575,-400.0,0.00019178,2]
[360128251,1746559843584,-357.10086959,0.00019178,2]
[360128253,1746559843593,-914.36,0.00019178,2]
[360128255,1746559843602,-400.0,0.00019178,2]
[360128257,1746559843612,-400.0,0.00019178,2]
[360128259,1746559843621,-400.0,0.00019178,2]
[360128261,1746559843631,-509.23200127,0.00019178,2]
[360128263,1746559843640,-5456.53,0.00019178,2]
[360128265,1746559843650,-400.0,0.00019178,2]
[360128267,1746559843659,-400.0,0.00019178,2]
[360128269,1746559843669,-1451.93,0.00019178,2]
[360128271,1746559843678,-400.0,0.00019178,2]
[360128273,1746559843687,-400.0,0.00019178,2]
[360128275,1746559843697,-400.0,0.00019178,2]
[360128277,1746559843707,-400.0,0.00019178,2]
[360128279,1746559843716,-352.62338438,0.00019178,2]
[360128281,1746559843725,-400.0,0.00019178,2]
[360128283,1746559843734,-2069.99,0.00019178,2]
[360128285,1746559843743,-400.0,0.00019178,2]
[360128287,1746559843753,-400.0,0.00019178,2]
[360128289,1746559843762,-400.0,0.00019178,2]
[360128291,1746559843772,-500.0,0.00019178,2]
[360128293,1746559843781,-400.0,0.00019178,2]
[360128295,1746559843790,-1573.38,0.00019178,2]
[360128297,1746559843799,-400.0,0.00019178,2]
[360128299,1746559843809,-400.0,0.00019178,2]
[360128301,1746559843818,-2568.9,0.00019178,2]
[360128303,1746559843827,-400.0,0.00019178,2]
[360128305,1746559843836,-906.0,0.00019178,2]
[360128307,1746559843845,-400.0,0.00019178,2]
[360128309,1746559843855,-401.28101685,0.00019178,2]
[360128311,1746559843864,-432.39,0.00019178,2]
[360128314,1746559843873,-224.44762557,0.00019178,2]
[360128317,1746559843882,-1364.2,0.00019178,2]
[360128319,1746559843891,-400.0,0.00019178,2]
[360128347,1746559844013,-400.0,0.00019178,2]
[360128349,1746559844041,-400.0,0.00019178,2]
[360128351,1746559844051,-575.56,0.00019178,2]
[360128353,1746559844061,-400.0,0.00019178,2]
[360128355,1746559844070,-455.70127331,0.00019178,2]
[360128357,1746559844080,-400.0,0.00019178,2]
[360128359,1746559844089,-440.96,0.00019178,2]
[360128361,1746559844099,-500.0,0.00019178,2]
[360128363,1746559844108,-400.0,0.00019178,2]
[360128365,1746559844117,-500.0,0.00019178,2]
[360128367,1746559844128,-400.0,0.00019178,2]
[360128369,1746559844139,-400.0,0.00019178,2]
[360128371,1746559844149,-500.0,0.00019178,2]
[360128373,1746559844159,-500.0,0.00019178,2]
[360128375,1746559844169,-225.55,0.00019178,2]
[360128377,1746559844179,-400.0,0.00019178,2]
[360128379,1746559844189,-400.0,0.00019178,2]
[360128381,1746559844199,-1073.29,0.00019178,2]
[360128383,1746559844208,-1168.25,0.00019178,2]
[360128385,1746559844218,-400.0,0.00019178,2]
[360128387,1746559844227,-1899.99,0.00019178,2]
[360128389,1746559844237,-500.0,0.00019178,2]
[360128391,1746559844246,-400.0,0.00019178,2]
[360128393,1746559844256,-500.0,0.00019178,2]
[360128396,1746559844266,-2451.0,0.00019178,2]
[360128398,1746559844276,-400.0,0.00019178,2]
[360128400,1746559844286,-400.0,0.00019178,2]
[360128402,1746559844295,-400.0,0.00019178,2]
[360128404,1746559844305,-1182.87,0.00019178,2]
[360128406,1746559844314,-400.0,0.00019178,2]
[360128408,1746559844323,-400.0,0.00019178,2]
[360128410,1746559844332,-407.5,0.00019178,2]
[360128412,1746559844341,-2760.59,0.00019178,2]
[360128414,1746559844350,-1875.51,0.00019178,2]
[360128416,1746559844359,-400.0,0.00019178,2]
[360128418,1746559844369,-1295.66,0.00019178,2]
[360128420,1746559844378,-400.0,0.00019178,2]
[360128422,1746559844388,-2294.47,0.00019178,2]
[360128424,1746559844397,-433.27,0.00019178,2]
[360128426,1746559844406,-400.0,0.00019178,2]
[360128428,1746559844415,-400.0,0.00019178,2]
[360128430,1746559844424,-400.0,0.00019178,2]
[360128432,1746559844433,-4096.88,0.00019178,2]
[360128434,1746559844442,-442.61,0.00019178,2]
[360128436,1746559844451,-1658.25,0.00019178,2]
[360128438,1746559844461,-400.0,0.00019178,2]
[360128440,1746559844470,-400.0,0.00019178,2]
[360128442,1746559844480,-400.0,0.00019178,2]
[360128444,1746559844489,-400.0,0.00019178,2]
[360128446,1746559844498,-417.45388257,0.00019178,2]
[360128448,1746559844507,-714.22,0.00019178,2]
[360128450,1746559844517,-402.3,0.00019178,2]
[360128452,1746559844526,-400.0,0.00019178,2]
[360128454,1746559844535,-400.0,0.00019178,2]
[360128456,1746559844546,-414.38058515,0.00019178,2]
[360128458,1746559844555,-207.81361761,0.00019178,2]
[360128460,1746559844564,-400.0,0.00019178,2]
[360128462,1746559844573,-406.77745766,0.00019178,2]
[360128464,1746559844583,-400.0,0.00019178,2]
[360128466,1746559844592,-400.0,0.00019178,2]
[360128468,1746559844602,-400.0,0.00019178,2]
[360128470,1746559844612,-608.14,0.00019178,2]
[360128472,1746559844621,-659.74,0.00019178,2]
[360128474,1746559844631,-436.88,0.00019178,2]
[360128476,1746559844640,-400.0,0.00019178,2]
[360128478,1746559844649,-746.25,0.00019178,2]
[360128480,1746559844658,-421.81,0.00019178,2]
[360128482,1746559844667,-400.0,0.00019178,2]
[360128484,1746559844677,-671.0,0.00019178,2]
[360128486,1746559844686,-400.0,0.00019178,2]
[360128488,1746559844697,-400.0,0.00019178,2]
[360128490,1746559844706,-657.42,0.00019178,2]
[360128492,1746559844715,-500.0,0.00019178,2]
[360128494,1746559844726,-1688.98,0.00019178,2]
[360128496,1746559844736,-1516.92,0.00019178,2]
[360128498,1746559844745,-400.0,0.00019178,2]
[360128500,1746559844754,-400.0,0.00019178,2]
[360128502,1746559844764,-404.56256714,0.00019178,2]
[360128504,1746559844774,-2332.11,0.00019178,2]
[360128506,1746559844783,-401.05920041,0.00019178,2]
[360128508,1746559844792,-400.0,0.00019178,2]
[360128510,1746559844801,-400.0,0.00019178,2]
[360128512,1746559844810,-400.0,0.00019178,2]
[360128514,1746559844819,-1269.6,0.00019178,2]
[360128516,1746559844828,-408.62378726,0.00019178,2]
[360128518,1746559844837,-3903.25,0.00019178,2]
[360128520,1746559844846,-400.0,0.00019178,2]
[360128522,1746559844855,-1937.43,0.00019178,2]
[360128524,1746559844864,-664.08,0.00019178,2]
[360128526,1746559844873,-400.0,0.00019178,2]
[360128528,1746559844883,-1815.93,0.00019178,2]
[360128530,1746559844892,-1395.58,0.00019178,2]
[360128532,1746559844901,-400.0,0.00019178,2]
[360128534,1746559844910,-400.0,0.00019178,2]
[360128536,1746559844919,-2599.11,0.00019178,2]
[360128538,1746559844928,-400.0,0.00019178,2]
[360128540,1746559844938,-400.0,0.00019178,2]
[360128542,1746559844948,-400.0,0.00019178,2]
[360128544,1746559844957,-400.0,0.00019178,2]
[360128546,1746559844966,-860.33,0.00019178,2]
[360128548,1746559844975,-579.77,0.00019178,2]
[360128550,1746559844984,-400.0,0.00019178,2]
[360128552,1746559844993,-400.0,0.00019178,2]
[360128554,1746559845003,-400.0,0.00019178,2]
[360128556,1746559845012,-509.9,0.00019178,2]
[360128558,1746559845021,-520.67,0.00019178,2]
[360128560,1746559845031,-231.50128477,0.00019178,2]
[360128562,1746559845039,-400.0,0.00019178,2]
[360128564,1746559845049,-400.0,0.00019178,2]
[360128566,1746559845058,-3534.08,0.00019178,2]
[360128568,1746559845067,-400.0,0.00019178,2]
[360128570,1746559845076,-400.0,0.00019178,2]
[360128572,1746559845085,-400.0,0.00019178,2]
[360128574,1746559845094,-400.0,0.00019178,2]
[360128576,1746559845103,-400.0,0.00019178,2]
[360128578,1746559845112,-400.0,0.00019178,2]
[360128580,1746559845121,-1000.0,0.00019178,2]
[360128582,1746559845132,-500.0,0.00019178,2]
[360128583,1746559845142,-500.0,0.00019178,2]
[360128586,1746559845152,-1419.56,0.00019178,2]
[360128588,1746559845161,-500.0,0.00019178,2]
[360128590,1746559845171,-500.0,0.00019178,2]
[360128592,1746559845181,-400.0,0.00019178,2]
[360128594,1746559845190,-500.0,0.00019178,2]
[360128596,1746559845199,-500.0,0.00019178,2]
[360128598,1746559845211,-500.0,0.00019178,2]
[360128599,1746559845221,-500.0,0.00019178,2]
[360128601,1746559845231,-500.0,0.00019178,2]
[360128603,1746559845240,-353.28047129,0.00019178,2]
[360128605,1746559845249,-500.0,0.00019178,2]
[360128607,1746559845258,-500.0,0.00019178,2]
[360128609,1746559845267,-500.0,0.00019178,2]
[360128611,1746559845277,-500.0,0.00019178,2]
[360128613,1746559845286,-347.95,0.00019178,2]
[360128615,1746559845297,-400.0,0.00019178,2]
[360128617,1746559845306,-7220.36,0.00019178,2]
[360128619,1746559845315,-509.01718628,0.00019178,2]
[360128621,1746559845324,-468.56,0.00019178,2]
[360128623,1746559845334,-346.12022662,0.00019178,2]
[360128625,1746559845343,-400.0,0.00019178,2]
[360128627,1746559845352,-400.0,0.00019178,2]
[360128629,1746559845361,-400.0,0.00019178,2]
[360128631,1746559845370,-400.0,0.00019178,2]
[360128633,1746559845380,-358.0,0.00019178,2]
[360128635,1746559845389,-400.0,0.00019178,2]
[360128637,1746559845398,-1256.64,0.00019178,2]
[360128639,1746559845408,-18526.28,0.00019178,2]
[360128641,1746559845419,-2425.66,0.00019178,2]
[360128643,1746559845428,-400.0,0.00019178,2]
[360128645,1746559845438,-400.0,0.00019178,2]
[360128647,1746559845447,-424.05806894,0.00019178,2]
[360128649,1746559845456,-400.0,0.00019178,2]
[360128651,1746559845465,-400.0,0.00019178,2]
[360128653,1746559845474,-400.0,0.00019178,2]
[360128655,1746559845483,-400.0,0.00019178,2]
[360128657,1746559845493,-400.0,0.00019178,2]
[360128659,1746559845502,-400.0,0.00019178,2]
[360128661,1746559845511,-505.17156563,0.00019178,2]
[360128663,1746559845520,-1682.62,0.00019178,2]
[360128665,1746559845529,-518.38,0.00019178,2]
[360128667,1746559845539,-400.0,0.00019178,2]
[360128669,1746559845548,-400.0,0.00019178,2]
[360128671,1746559845557,-400.0,0.00019178,2]
[360128673,1746559845566,-400.0,0.00019178,2]
[360128675,1746559845575,-402.76247651,0.00019178,2]
[360128677,1746559845585,-400.0,0.00019178,2]
[360128679,1746559845594,-400.0,0.00019178,2]
[360128681,1746559845603,-773.09,0.00019178,2]
[360128683,1746559845612,-400.0,0.00019178,2]
[360128685,1746559845622,-8678.79,0.00019178,2]
[360128687,1746559845631,-2601.84,0.00019178,2]
[360128689,1746559845641,-400.0,0.00019178,2]
[360128691,1746559845650,-400.0,0.00019178,2]
[360128693,1746559845659,-400.0,0.00019178,2]
[360128695,1746559845669,-400.0,0.00019178,2]
[360128697,1746559845678,-400.0,0.00019178,2]
[360128699,1746559845688,-1036.19,0.00019178,2]
[360128701,1746559845697,-8706.78,0.00019178,2]
[360128703,1746559845707,-400.0,0.00019178,2]
[360128705,1746559845716,-410.52,0.00019178,2]
[360128707,1746559845726,-1354.8,0.00019178,2]
[360128710,1746559845735,-400.0,0.00019178,2]
[360128712,1746559845745,-424.32,0.00019178,2]
[360128714,1746559845754,-405.99455463,0.00019178,2]
[360128715,1746559845763,-400.0,0.00019178,2]
[360128717,1746559845772,-1320.35,0.00019178,2]
[360128719,1746559845781,-400.0,0.00019178,2]
[360128721,1746559845790,-3107.34,0.00019178,2]
[360128723,1746559845799,-400.0,0.00019178,2]
[360128725,1746559845809,-326.10167798,0.00019178,2]
[360128727,1746559845818,-2466.48,0.00019178,2]
[360128729,1746559845827,-365.92022932,0.00019178,2]
[360128732,1746559845837,-400.0,0.00019178,2]
[360128733,1746559845846,-400.0,0.00019178,2]
[360128736,1746559845857,-400.0,0.00019178,2]
[360128738,1746559845867,-1499.83,0.00019178,2]
[360128740,1746559845876,-400.0,0.00019178,2]
[360128741,1746559845887,-400.0,0.00019178,2]
[360128743,1746559845896,-400.0,0.00019178,2]
[360128745,1746559845905,-400.0,0.00019178,2]
[360128747,1746559845914,-212.45092939,0.00019178,2]
[360128749,1746559845926,-640.19,0.00019178,2]
[360128751,1746559845936,-400.0,0.00019178,2]
[360128753,1746559845947,-400.0,0.00019178,2]
[360128755,1746559845957,-400.0,0.00019178,2]
[360128757,1746559845966,-400.0,0.00019178,2]
[360128759,1746559845976,-400.0,0.00019178,2]
[360128761,1746559845985,-400.0,0.00019178,2]
[360128763,1746559845994,-400.0,0.00019178,2]
[360128764,1746559846003,-858.84,0.00019178,2]
[360128765,1746559846012,-400.0,0.00019178,2]
[360128766,1746559846022,-400.0,0.00019178,2]
[360128767,1746559846031,-2271.69,0.00019178,2]
[360128768,1746559846040,-400.0,0.00019178,2]
[360128769,1746559846049,-563.78,0.00019178,2]
[360128770,1746559846059,-400.0,0.00019178,2]
[360128771,1746559846068,-400.0,0.00019178,2]
[360128772,1746559846077,-669.47,0.00019178,2]
[360128773,1746559846087,-400.0,0.00019178,2]
[360128774,1746559846096,-400.0,0.00019178,2]
[360128775,1746559846105,-400.0,0.00019178,2]
[360128777,1746559846114,-400.0,0.00019178,2]
[360128778,1746559846123,-3486.01,0.00019178,2]
[360128779,1746559846135,-202.21434323,0.00019178,2]
[360128780,1746559846145,-400.0,0.00019178,2]
[360128781,1746559846154,-400.0,0.00019178,2]
[360128783,1746559846163,-402.91911364,0.00019178,2]
[360128785,1746559846172,-400.0,0.00019178,2]
[360128787,1746559846182,-400.0,0.00019178,2]
[360128790,1746559846191,-401.36702011,0.00019178,2]
[360128792,1746559846200,-423.76,0.00019178,2]
[360128794,1746559846210,-400.0,0.00019178,2]
[360128796,1746559846219,-3041.56,0.00019178,2]
[360128798,1746559846228,-400.0,0.00019178,2]
[360128799,1746559846238,-552.33,0.00019178,2]
[360128801,1746559846248,-500.0,0.00019178,2]
[360128803,1746559846257,-500.0,0.00019178,2]
[360128805,1746559846266,-500.0,0.00019178,2]
[360128807,1746559846275,-500.0,0.00019178,2]
[360128809,1746559846285,-487.41165752,0.00019178,2]
[360128811,1746559846295,-500.0,0.00019178,2]
[360128813,1746559846305,-500.0,0.00019178,2]
[360128815,1746559846314,-500.0,0.00019178,2]
[360128817,1746559846323,-500.0,0.00019178,2]
[360128819,1746559846333,-500.0,0.00019178,2]
[360128821,1746559846342,-500.0,0.00019178,2]
[360128823,1746559846351,-500.0,0.00019178,2]
[360128826,1746559846369,-648.24,0.00019178,2]
[360128829,1746559846381,-400.0,0.00019178,2]
[360128831,1746559846391,-151.0,0.00019178,2]
[360128833,1746559846401,-748.440874,0.00019178,2]
[360128835,1746559846412,-300.0,0.00019178,2]
[360128837,1746559846422,-1665.41685812,0.00019205,5]
[360128839,1746559846431,-150.87121571,0.00019229,2]
[360128841,1746559846441,-156.587,0.00019233,2]
[360128843,1746559846451,-162.380719,0.00019288,2]
[360128845,1746559846460,-160.0,0.00019324,2]
[360128847,1746559846470,-160.0,0.00019324,2]
[360128849,1746559846479,-313.9004746,0.00019324,2]
[360128851,1746559846489,-160.0,0.00019324,2]
[360128852,1746559846498,-160.0,0.00019324,2]
[360128853,1746559846508,-138914.38542241,0.00019328,3]
[360128854,1746559846517,-268304.5978261,0.00019328,2]
[360128855,1746559846562,-1245.49622947,0.00019328,2]
[360128872,1746559847011,-400.0,0.00019178,2]
[360128873,1746559847021,-400.0,0.00019178,2]
[360128874,1746559847032,-2074.09123938,0.00019328,2]
[360128940,1746561031743,-292.4599681,0.00017531,2]
[360128941,1746561031754,-154.15250561,0.00017578,2]
[360128942,1746561031849,-95.84749439,0.00017578,2]
[360128944,1746561031858,-344.286874,0.00018141,2]
[360128946,1746561031868,-266.0203103,0.00018141,2]
[360128948,1746561031878,-151.0,0.00018181,2]
[360128950,1746561031887,-300.0,0.00018187,2]
[360128952,1746561031897,-1200.0,0.00018187,2]
[360128954,1746561031907,-300.0,0.00018187,2]
[360128956,1746561031916,-1687.55698749,0.00018188,2]
[360128958,1746561031925,-500.0,0.00018188,2]
[360128960,1746561031935,-500.0,0.00018188,2]
[360128962,1746561031944,-500.0,0.00018188,2]
[360128964,1746561031955,-399.92795328,0.00018188,2]
[360128966,1746561031964,-500.0,0.00018188,2]
[360128968,1746561031974,-500.0,0.00018188,2]
[360128970,1746561031985,-500.0,0.00018188,2]
[360128971,1746561031994,-500.0,0.00018188,2]
[360128972,1746561032003,-320.0,0.00018188,2]
[360128973,1746561032013,-184.33721944,0.00018188,2]
[360128994,1746561038480,-315.66278056,0.00018188,2]
[360128995,1746561038490,-500.0,0.00018188,2]
[360128996,1746561038501,-500.0,0.00018188,2]
[360128997,1746561038511,-3000.0,0.000182,2]
[360128998,1746561038525,-1985.5387592,0.00018286,2]
[360128999,1746561038534,-998.20323418,0.00018665,2]
[360129000,1746561038543,-1008.1329008,0.00018665,2]
[360129001,1746561038553,-346090.34998838,0.00018666,2]
[360129002,1746561038563,-500.0,0.00018673,2]
[360129003,1746561038573,-500.0,0.00018673,2]
[360129004,1746561038582,-500.0,0.00018673,2]
[360129005,1746561038591,-500.0,0.00018673,2]
[360129006,1746561038601,-500.0,0.00018673,2]
[360129007,1746561038611,-500.0,0.00018673,2]
[360129008,1746561038620,-500.0,0.00018673,2]
[360129009,1746561038629,-500.0,0.00018673,2]
[360129010,1746561038639,-500.0,0.00018673,2]
[360129011,1746561038649,-1366.9898187,0.000189,2]
[360129012,1746561038659,-614.13335502,0.00018966,2]
[360129013,1746561038668,-68429.0,0.00019,2]
[360129014,1746561038679,-161.48849,0.0001911,3]
[360129015,1746561038688,-500.0,0.00019173,2]
[360129016,1746561038698,-191.4,0.00019173,2]
[360129017,1746561038708,-191.4,0.00019173,2]
[360129018,1746561038718,-500.0,0.00019173,2]
[360129019,1746561038727,-500.0,0.00019173,2]
[360129020,1746561038736,-500.0,0.00019173,2]
[360129021,1746561038747,-534.03932456,0.00019173,2]
[360129022,1746561038757,-525.86693798,0.00019173,2]
[360129023,1746561038768,-500.0,0.00019173,2]
[360129024,1746561038778,-500.0,0.00019173,2]
[360129025,1746561038787,-518.51980356,0.00019173,2]
[360129026,1746561038797,-500.0,0.00019173,2]
[360129027,1746561038807,-500.0,0.00019173,2]
[360129028,1746561038817,-500.0,0.00019173,2]
[360129029,1746561038827,-500.0,0.00019173,2]
[360129030,1746561038836,-500.0,0.00019173,2]
[360129031,1746561038845,-500.0,0.00019173,2]
[360129032,1746561038855,-500.0,0.00019173,2]
[360129033,1746561038864,-500.0,0.00019173,2]
[360129034,1746561038873,-500.0,0.00019173,2]
[360129035,1746561038883,-437.8772259,0.00019173,2]
[360129036,1746561038894,-500.0,0.00019173,2]
[360129037,1746561038904,-500.0,0.00019173,2]
[360129038,1746561038913,-500.0,0.00019173,2]
[360129039,1746561038923,-500.0,0.00019173,2]
[360129040,1746561038932,-585.53499778,0.00019173,2]
[360129041,1746561038941,-500.0,0.00019178,2]
[360129042,1746561038951,-400.0,0.00019178,2]
[360129043,1746561038961,-400.0,0.00019178,2]
[360129044,1746561038970,-400.0,0.00019178,2]
[360129045,1746561038980,-400.0,0.00019178,2]
[360129046,1746561038989,-449.36,0.00019178,2]
[360129047,1746561038999,-502.1374089,0.00019178,2]
[360129048,1746561039010,-400.0,0.00019178,2]
[360129049,1746561039019,-400.0,0.00019178,2]
[360129050,1746561039029,-153.94588979,0.00019178,2]
[360129051,1746561039039,-400.0,0.00019178,2]
[360129052,1746561039048,-400.0,0.00019178,2]
[360129053,1746561039058,-400.0,0.00019178,2]
[360129054,1746561039068,-326.7264839,0.00019178,2]
[360129055,1746561039078,-400.0,0.00019178,2]
[360129056,1746561039087,-400.0,0.00019178,2]
[360129057,1746561039097,-400.0,0.00019178,2]
[360129058,1746561039107,-500.0,0.00019178,2]
[360129059,1746561039116,-400.0,0.00019178,2]
[360129060,1746561039126,-473.40339252,0.00019178,2]
[360129061,1746561039135,-400.0,0.00019178,2]
[360129062,1746561039145,-400.0,0.00019178,2]
[360129063,1746561039155,-400.0,0.00019178,2]
[360129064,1746561039164,-402.94644609,0.00019178,2]
[360129065,1746561039174,-400.0,0.00019178,2]
[360129066,1746561039183,-400.0,0.00019178,2]
[360129067,1746561039192,-400.0,0.00019178,2]
[360129068,1746561039202,-400.0,0.00019178,2]
[360129069,1746561039211,-400.0,0.00019178,2]
[360129074,1746561039377,-400.0,0.00019178,2]
[360129075,1746561039388,-400.0,0.00019178,2]
[360129076,1746561039398,-400.0,0.00019178,2]
[360129077,1746561039418,-400.0,0.00019178,2]
[360129078,1746561039429,-400.0,0.00019178,2]
[360129079,1746561039439,-400.0,0.00019178,2]
[360129080,1746561039449,-400.0,0.00019178,2]
[360129081,1746561039459,-400.0,0.00019178,2]
[360129082,1746561039470,-400.0,0.00019178,2]
[360129083,1746561039480,-400.0,0.00019178,2]
[360129084,1746561039491,-400.0,0.00019178,2]
[360129085,1746561039500,-400.0,0.00019178,2]
[360129086,1746561039510,-503.55866188,0.00019178,2]
[360129087,1746561039524,-235.51168844,0.00019178,2]
[360129088,1746561039534,-400.0,0.00019178,2]
[360129089,1746561039545,-400.0,0.00019178,2]
[360129090,1746561039555,-400.0,0.00019178,2]
[360129091,1746561039565,-503.10174603,0.00019178,2]
[360129092,1746561039575,-400.0,0.00019178,2]
[360129093,1746561039585,-500.0,0.00019178,2]
[360129094,1746561039596,-400.0,0.00019178,2]
[360129095,1746561039607,-289.66766909,0.00019178,2]
[360129096,1746561039617,-402.77319095,0.00019178,2]
[360129097,1746561039627,-400.0,0.00019178,2]
[360129099,1746561039637,-400.0,0.00019178,2]
[360129101,1746561039648,-400.0,0.00019178,2]
[360129104,1746561039658,-307.06732803,0.00019178,2]
[360129106,1746561039669,-400.0,0.00019178,2]
[360129108,1746561039678,-400.0,0.00019178,2]
[360129110,1746561039688,-400.0,0.00019178,2]
[360129112,1746561039698,-400.0,0.00019178,2]
[360129114,1746561039708,-400.0,0.00019178,2]
[360129116,1746561039717,-282.09599566,0.00019178,2]
[360129118,1746561039728,-400.0,0.00019178,2]
[360129120,1746561039738,-400.0,0.00019178,2]
[360129122,1746561039748,-400.0,0.00019178,2]
[360129124,1746561039758,-214.02295616,0.00019178,2]
[360129126,1746561039770,-400.0,0.00019178,2]
[360129129,1746561039780,-400.0,0.00019178,2]
[360129131,1746561039791,-400.0,0.00019178,2]
[360129133,1746561039801,-400.0,0.00019178,2]
[360129135,1746561039811,-400.0,0.00019178,2]
[360129137,1746561039822,-400.0,0.00019178,2]
[360129139,1746561039832,-407.37330949,0.00019178,2]
[360129141,1746561039842,-229.43161492,0.00019178,2]
[360129143,1746561039853,-400.0,0.00019178,2]
[360129145,1746561039863,-400.0,0.00019178,2]
[360129147,1746561039873,-400.0,0.00019178,2]
[360129149,1746561039883,-205.07269539,0.00019178,2]
[360129151,1746561039895,-400.0,0.00019178,2]
[360129153,1746561039905,-400.0,0.00019178,2]
[360129155,1746561039915,-400.0,0.00019178,2]
[360129157,1746561039925,-400.0,0.00019178,2]
[360129160,1746561039935,-403.72300293,0.00019178,2]
[360129162,1746561039946,-844.63,0.00019178,2]
[360129164,1746561039956,-400.0,0.00019178,2]
[360129166,1746561039966,-400.0,0.00019178,2]
[360129168,1746561039976,-406.5313941,0.00019178,2]
[360129170,1746561039986,-407.394944,0.00019178,2]
[360129172,1746561039996,-400.0,0.00019178,2]
[360129174,1746561040006,-400.0,0.00019178,2]
[360129176,1746561040020,-400.0,0.00019178,2]
[360129178,1746561040030,-400.0,0.00019178,2]
[360129181,1746561040040,-400.0,0.00019178,2]
[360129183,1746561040050,-400.0,0.00019178,2]
[360129185,1746561040060,-400.0,0.00019178,2]
[360129187,1746561040071,-400.0,0.00019178,2]
[360129189,1746561040081,-400.0,0.00019178,2]
[360129191,1746561040091,-400.0,0.00019178,2]
[360129193,1746561040102,-400.0,0.00019178,2]
[360129195,1746561040111,-163.4935406,0.00019178,2]
[360129197,1746561040122,-867.26,0.00019178,2]
[360129199,1746561040132,-400.0,0.00019178,2]